fUST/lending_fUST_20251128
["ID","MTS","AMOUNT","RATE_DAILY","PERIOD"]
[394996840,1764283845913,-1445.14,0.00021643,2]
[394996841,1764283845923,-500.0,0.00021643,2]
[394996842,1764283845933,-500.0,0.00021643,2]
[394996843,1764283845943,-811.91,0.00021643,2]
[394996844,1764283845952,-2160.21,0.00021643,2]
[394996845,1764283845961,-3898.53,0.00021643,2]
[394996846,1764283845971,-500.0,0.00021643,2]
[394996847,1764283845981,-3533.28,0.00021643,2]
[394996848,1764283845990,-914.49,0.00021643,2]
[394996849,1764283846000,-3896.64,0.00021643,2]
[394996850,1764283846010,-500.0,0.00021643,2]
[394996851,1764283846020,-221.38200685,0.00021643,2]
[394996852,1764283846030,-1064.64,0.00021643,2]
[394996853,1764283846040,-599.11,0.00021643,2]
[394996854,1764283846049,-987.34,0.00021643,2]
[394996855,1764283846059,-2823.29,0.00021643,2]
[394996856,1764283846069,-500.0,0.00021643,2]
[394996857,1764283846079,-1818.71,0.00021643,2]
[394996858,1764283846089,-1125.97,0.00021643,2]
[394996859,1764283846100,-5948.99,0.00021643,2]
[394996860,1764283846110,-500.0,0.00021643,2]
[394996861,1764283846124,-500.0,0.00021643,2]
[394996862,1764283846135,-3571.91,0.00021643,2]
[394996863,1764283846145,-500.0,0.00021648,2]
[394996864,1764283846156,-4956.81,0.00021917,2]
[394996865,1764283846167,-2551.07,0.00021917,2]
[394996866,1764283846177,-1259.6,0.00021917,2]
[394996867,1764283846187,-997.34,0.00021917,2]
[394996868,1764283846198,-2817.43,0.00021917,2]
[394996869,1764283846208,-538.23,0.00021917,2]
[394996870,1764283846218,-500.0,0.00021917,2]
[394996871,1764283846228,-1445.14,0.00021917,2]
[394996872,1764283846238,-500.0,0.00021917,2]
[394996873,1764283846249,-500.0,0.00021917,2]
[394996874,1764283846259,-811.91,0.00021917,2]
[394996875,1764283846269,-2160.21,0.00021917,2]
[394996876,1764283846279,-3898.53,0.00021917,2]
[394996877,1764283846289,-500.0,0.00021917,2]
[394996878,1764283846298,-3533.28,0.00021917,2]
[394996879,1764283846309,-914.49,0.00021917,2]
[394996880,1764283846319,-3896.64,0.00021917,2]
[394996881,1764283846329,-500.0,0.00021917,2]
[394996882,1764283846340,-1064.64,0.00021917,2]
[394996883,1764283846350,-599.11,0.00021917,2]
[394996884,1764283846361,-987.34,0.00021917,2]
[394996885,1764283846371,-2823.29,0.00021917,2]
[394996886,1764283846381,-500.0,0.00021917,2]
[394996887,1764283846391,-1818.71,0.00021917,2]
[394996888,1764283846401,-1125.97,0.00021917,2]
[394996889,1764283846411,-5948.99,0.00021917,2]
[394996890,1764283846420,-500.0,0.00021917,2]
[394996891,1764283846431,-3571.91,0.00021917,2]
[394996892,1764283846440,-460.68136759,0.00022145,3]
[394996893,1764283846450,-4266.0,0.00022162,15]
[394996894,1764283846459,-835.886071,0.00022162,15]
[394996895,1764283846469,-4956.81,0.00022191,2]
[394996896,1764283846479,-2551.07,0.00022191,2]
[394996897,1764283846489,-1259.6,0.00022191,2]
[394996898,1764283846498,-997.34,0.00022191,2]
[394996899,1764283846508,-2817.43,0.00022191,2]
[394996900,1764283846518,-538.23,0.00022191,2]
[394996901,1764283846529,-500.0,0.00022191,2]
[394996902,1764283846538,-1445.14,0.00022191,2]
[394996903,1764283846549,-500.0,0.00022191,2]
[394996904,1764283846563,-500.0,0.00022191,2]
[394996905,1764283846572,-811.91,0.00022191,2]
[394996906,1764283846581,-2160.21,0.00022191,2]
[394996907,1764283846591,-3898.53,0.00022191,2]
[394996908,1764283846603,-520.0,0.00022191,2]
[394996909,1764283846613,-3533.28,0.00022191,2]
[394996910,1764283846622,-914.49,0.00022191,2]
[394996911,1764283846634,-3896.64,0.00022191,2]
[394996912,1764283846643,-508.32096445,0.00022191,2]
[394996913,1764283846653,-1064.64,0.00022191,2]
[394996914,1764283846662,-599.11,0.00022191,2]
[394996915,1764283846671,-987.34,0.00022191,2]
[394996916,1764283846681,-2823.29,0.00022191,2]
[394996917,1764283846691,-482.94359884,0.00022191,2]
[394996918,1764283846700,-1818.71,0.00022191,2]
[394996919,1764283846710,-1125.97,0.00022191,2]
[394996920,1764283846719,-5948.99,0.00022191,2]
[394996921,1764283846729,-500.0,0.00022191,2]
[394996922,1764283846738,-3571.91,0.00022191,2]
[394996923,1764283846748,-4956.81,0.00022465,2]
[394996924,1764283846758,-2551.07,0.00022465,2]
[394996925,1764283846768,-1259.6,0.00022465,2]
[394996926,1764283846778,-997.34,0.00022465,2]
[394996927,1764283846788,-2817.43,0.00022465,2]
[394996928,1764283846798,-538.23,0.00022465,2]
[394996929,1764283846812,-500.0,0.00022465,2]
[394996930,1764283846821,-1445.14,0.00022465,2]
[394996931,1764283846831,-500.0,0.00022465,2]
[394996932,1764283846840,-500.0,0.00022465,2]
[394996933,1764283846849,-811.91,0.00022465,2]
[394996934,1764283846862,-2160.21,0.00022465,2]
[394996935,1764283846872,-3898.53,0.00022465,2]
[394996936,1764283846882,-3533.28,0.00022465,2]
[394996937,1764283846892,-914.49,0.00022465,2]
[394996938,1764283846901,-3896.64,0.00022465,2]
[394996939,1764283846911,-1064.64,0.00022465,2]
[394996940,1764283846922,-599.11,0.00022465,2]
[394996941,1764283846932,-987.34,0.00022465,2]
[394996942,1764283846942,-2823.29,0.00022465,2]
[394996943,1764283846952,-1818.71,0.00022465,2]
[394996944,1764283846969,-1125.97,0.00022465,2]
[394996945,1764283846991,-5948.99,0.00022465,2]
[394996946,1764283847004,-500.0,0.00022465,2]
[394996947,1764283847015,-151.0,0.000227,6]
[394996948,1764283847026,-4956.81,0.00022739,2]
[394996949,1764283847036,-2551.07,0.00022739,2]
[394996950,1764283847046,-1259.6,0.00022739,2]
[394996951,1764283847057,-997.34,0.00022739,2]
[394996952,1764283847068,-2817.43,0.00022739,2]
[394996953,1764283847079,-538.23,0.00022739,2]
[394996954,1764283847089,-500.0,0.00022739,2]
[394996955,1764283847100,-1445.14,0.00022739,2]
[394996956,1764283847111,-500.0,0.00022739,2]
[394996957,1764283847121,-500.0,0.00022739,2]
[394996958,1764283847131,-811.91,0.00022739,2]
[394996959,1764283847141,-2160.21,0.00022739,2]
[394996960,1764283847151,-3898.53,0.00022739,2]
[394996961,1764283847161,-3533.28,0.00022739,2]
[394996962,1764283847171,-914.49,0.00022739,2]
[394996963,1764283847181,-3896.64,0.00022739,2]
[394996964,1764283847191,-1064.64,0.00022739,2]
[394996965,1764283847200,-599.11,0.00022739,2]
[394996966,1764283847210,-987.34,0.00022739,2]
[394996967,1764283847220,-2823.29,0.00022739,2]
[394996968,1764283847230,-1818.71,0.00022739,2]
[394996969,1764283847240,-1125.97,0.00022739,2]
[394996970,1764283847250,-5948.99,0.00022739,2]
[394996971,1764283847260,-500.0,0.00022739,2]
[394996972,1764283847270,-320.35,0.00023,7]
[394996973,1764283847280,-380.01,0.00023,14]
[394996974,1764283847289,-214.81899452,0.00023,2]
[394996975,1764283847299,-165.0,0.00023,7]
[394996976,1764283847310,-4956.81,0.00023013,2]
[394996977,1764283847321,-2551.07,0.00023013,2]
[394996978,1764283847332,-1259.6,0.00023013,2]
[394996979,1764283847342,-997.34,0.00023013,2]
[394996980,1764283847352,-2817.43,0.00023013,2]
[394996981,1764283847362,-538.23,0.00023013,2]
[394996982,1764283847372,-500.0,0.00023013,2]
[394996983,1764283847382,-1445.14,0.00023013,2]
[394996984,1764283847391,-500.0,0.00023013,2]
[394996985,1764283847400,-500.0,0.00023013,2]
[394996986,1764283847559,-811.91,0.00023013,2]
[394996987,1764283847569,-2160.21,0.00023013,2]
[394996988,1764283847579,-3898.53,0.00023013,2]
[394996989,1764283847588,-3533.28,0.00023013,2]
[394996990,1764283847599,-914.49,0.00023013,2]
[394996991,1764283847608,-3896.64,0.00023013,2]
[394996992,1764283847617,-1064.64,0.00023013,2]
[394996993,1764283847626,-599.11,0.00023013,2]
[394996994,1764283847639,-987.34,0.00023013,2]
[394996995,1764283847649,-2823.29,0.00023013,2]
[394996996,1764283847658,-1818.71,0.00023013,2]
[394996997,1764283847668,-1125.97,0.00023013,2]
[394996998,1764283847678,-5948.99,0.00023013,2]
[394996999,1764283847688,-500.0,0.00023013,2]
[394997000,1764283847697,-179.82017982,0.00023065,2]
[394997001,1764283847706,-4956.81,0.00023287,2]
[394997002,1764283847715,-2551.07,0.00023287,2]
[394997003,1764283847725,-1259.6,0.00023287,2]
[394997004,1764283847734,-997.34,0.00023287,2]
[394997005,1764283847744,-2817.43,0.00023287,2]
[394997006,1764283847753,-538.23,0.00023287,2]
[394997007,1764283847762,-500.0,0.00023287,2]
[394997008,1764283847771,-1445.14,0.00023287,2]
[394997009,1764283847780,-500.0,0.00023287,2]
[394997010,1764283847790,-500.0,0.00023287,2]
[394997011,1764283847799,-811.91,0.00023287,2]
[394997012,1764283847808,-2160.21,0.00023287,2]
[394997013,1764283847817,-3898.53,0.00023287,2]
[394997014,1764283847827,-3533.28,0.00023287,2]
[394997015,1764283847836,-914.49,0.00023287,2]
[394997016,1764283847845,-3896.64,0.00023287,2]
[394997017,1764283847854,-1064.64,0.00023287,2]
[394997018,1764283847863,-599.11,0.00023287,2]
[394997019,1764283847873,-987.34,0.00023287,2]
[394997020,1764283847882,-2823.29,0.00023287,2]
[394997021,1764283847891,-1818.71,0.00023287,2]
[394997022,1764283847901,-1125.97,0.00023287,2]
[394997023,1764283847910,-5948.99,0.00023287,2]
[394997024,1764283847919,-150.0,0.000233,5]
[394997025,1764283847928,-500.0,0.00023425,7]
[394997026,1764283847938,-414.0,0.0002351,2]
[394997027,1764283847947,-366.0,0.00023515,2]
[394997028,1764283847956,-4956.81,0.00023561,2]
[394997029,1764283847966,-2551.07,0.00023561,2]
[394997030,1764283847975,-1259.6,0.00023561,2]
[394997031,1764283847984,-997.34,0.00023561,2]
[394997032,1764283847994,-2817.43,0.00023561,2]
[394997033,1764283848004,-538.23,0.00023561,2]
[394997034,1764283848013,-500.0,0.00023561,2]
[394997035,1764283848022,-1445.14,0.00023561,2]
[394997036,1764283848032,-500.0,0.00023561,2]
[394997037,1764283848041,-500.0,0.00023561,2]
[394997038,1764283848051,-811.91,0.00023561,2]
[394997039,1764283848061,-2160.21,0.00023561,2]
[394997040,1764283848071,-3898.53,0.00023561,2]
[394997041,1764283848081,-3533.28,0.00023561,2]
[394997042,1764283848090,-914.49,0.00023561,2]
[394997043,1764283848099,-3896.64,0.00023561,2]
[394997044,1764283848109,-1064.64,0.00023561,2]
[394997045,1764283848119,-599.11,0.00023561,2]
[394997046,1764283848128,-987.34,0.00023561,2]
[394997047,1764283848137,-2823.29,0.00023561,2]
[394997048,1764283848146,-1818.71,0.00023561,2]
[394997049,1764283848155,-1125.97,0.00023561,2]
[394997050,1764283848164,-5948.99,0.00023561,2]
[394997051,1764283848174,-1000.0,0.00023565,10]
[394997052,1764283848183,-1000.0,0.00023565,10]
[394997053,1764283848193,-1000.0,0.00023565,10]
[394997054,1764283848202,-412.71791628,0.00023665,2]
[394997055,1764283848211,-500.0,0.00023754,2]
[394997056,1764283848221,-4956.81,0.00023835,2]
[394997057,1764283848232,-2551.07,0.00023835,2]
[394997058,1764283848241,-1259.6,0.00023835,2]
[394997059,1764283848250,-997.34,0.00023835,2]
[394997060,1764283848259,-2817.43,0.00023835,2]
[394997061,1764283848269,-538.23,0.00023835,2]
[394997062,1764283848278,-500.0,0.00023835,2]
[394997063,1764283848288,-1445.14,0.00023835,2]
[394997064,1764283848298,-500.0,0.00023835,2]
[394997065,1764283848308,-811.91,0.00023835,2]
[394997066,1764283848318,-500.0,0.00023835,2]
[394997067,1764283848328,-2160.21,0.00023835,2]
[394997068,1764283848338,-3898.53,0.00023835,2]
[394997069,1764283848347,-3533.28,0.00023835,2]
[394997070,1764283848357,-914.49,0.00023835,2]
[394997071,1764283848366,-3896.64,0.00023835,2]
[394997072,1764283848376,-1064.64,0.00023835,2]
[394997073,1764283848385,-599.11,0.00023835,2]
[394997074,1764283848394,-987.34,0.00023835,2]
[394997075,1764283848403,-2823.29,0.00023835,2]
[394997076,1764283848412,-1818.71,0.00023835,2]
[394997077,1764283848421,-1125.97,0.00023835,2]
[394997078,1764283848431,-5948.99,0.00023835,2]
[394997079,1764283848440,-251.01199542,0.00024,60]
[394997080,1764283848449,-9640.28945355,0.00024,30]
[394997081,1764283848459,-600.0,0.00024066,2]
[394997082,1764283848468,-4956.81,0.00024109,2]
[394997083,1764283848477,-2551.07,0.00024109,2]
[394997084,1764283848486,-1259.6,0.00024109,2]
[394997085,1764283848496,-997.34,0.00024109,2]
[394997086,1764283848505,-2817.43,0.00024109,2]
[394997087,1764283848514,-538.23,0.00024109,2]
[394997088,1764283848523,-613.45146451,0.00024109,2]
[394997089,1764283848532,-1445.14,0.00024109,2]
[394997090,1764283848542,-572.15635195,0.00024109,2]
[394997091,1764283848551,-811.91,0.00024109,2]
[394997092,1764283848564,-427.79050867,0.00024109,2]
[394997093,1764283848573,-2160.21,0.00024109,2]
[394997094,1764283848583,-3898.53,0.00024109,2]
[394997095,1764283848592,-3533.28,0.00024109,2]
[394997096,1764283848602,-914.49,0.00024109,2]
[394997097,1764283848612,-3896.64,0.00024109,2]
[394997098,1764283848621,-1064.64,0.00024109,2]
[394997099,1764283848633,-599.11,0.00024109,2]
[394997100,1764283848642,-987.34,0.00024109,2]
[394997101,1764283848651,-2823.29,0.00024109,2]
[394997102,1764283848661,-1818.71,0.00024109,2]
[394997103,1764283848671,-1125.97,0.00024109,2]
[394997104,1764283848679,-5948.99,0.00024109,2]
[394997105,1764283848688,-600.0,0.00024317,2]
[394997106,1764283848697,-4956.81,0.00024383,2]
[394997107,1764283848706,-2551.07,0.00024383,2]
[394997108,1764283848716,-1259.6,0.00024383,2]
[394997109,1764283848725,-997.34,0.00024383,2]
[394997110,1764283848735,-2817.43,0.00024383,2]
[394997111,1764283848744,-538.23,0.00024383,2]
[394997112,1764283848753,-1445.14,0.00024383,2]
[394997113,1764283848762,-811.91,0.00024383,2]
[394997114,1764283848772,-2160.21,0.00024383,2]
[394997115,1764283848781,-3898.53,0.00024383,2]
[394997116,1764283848790,-3533.28,0.00024383,2]
[394997117,1764283848799,-914.49,0.00024383,2]
[394997118,1764283848809,-3896.64,0.00024383,2]
[394997119,1764283848818,-1064.64,0.00024383,2]
[394997120,1764283848827,-599.11,0.00024383,2]
[394997121,1764283848836,-987.34,0.00024383,2]
[394997122,1764283848845,-2823.29,0.00024383,2]
[394997123,1764283848855,-1818.71,0.00024383,2]
[394997124,1764283848864,-1125.97,0.00024383,2]
[394997125,1764283848874,-5948.99,0.00024383,2]
[394997126,1764283848884,-791.83231366,0.00024568,2]
[394997127,1764283848893,-155.98404395,0.00024568,2]
[394997128,1764283848902,-4956.81,0.00024657,2]
[394997129,1764283848912,-2551.07,0.00024657,2]
[394997130,1764283848921,-1259.6,0.00024657,2]
[394997131,1764283848930,-997.34,0.00024657,2]
[394997132,1764283848939,-2817.43,0.00024657,2]
[394997133,1764283848948,-538.23,0.00024657,2]
[394997134,1764283848957,-1445.14,0.00024657,2]
[394997135,1764283848967,-811.91,0.00024657,2]
[394997136,1764283848976,-2160.21,0.00024657,2]
[394997137,1764283848985,-3898.53,0.00024657,2]
[394997138,1764283848994,-3533.28,0.00024657,2]
[394997139,1764283849003,-914.49,0.00024657,2]
[394997140,1764283849013,-3896.64,0.00024657,2]
[394997141,1764283849022,-1064.64,0.00024657,2]
[394997142,1764283849031,-599.11,0.00024657,2]
[394997143,1764283849040,-987.34,0.00024657,2]
[394997144,1764283849049,-2823.29,0.00024657,2]
[394997145,1764283849058,-1818.71,0.00024657,2]
[394997146,1764283849067,-1125.97,0.00024657,2]
[394997147,1764283849077,-5948.99,0.00024657,2]
[394997148,1764283849086,-500.0,0.00024658,2]
[394997149,1764283849095,-500.0,0.00024795,2]
[394997150,1764283849104,-320.35,0.000248,7]
[394997151,1764283849113,-10314.1981674,0.000248,2]
[394997152,1764283849122,-499.55491123,0.00024845,2]
[394997153,1764283849131,-323.6556599,0.00024876,2]
[394997154,1764283849140,-380.01,0.000249,14]
[394997155,1764283849149,-30851.17716466,0.000249,2]
[394997156,1764283849590,-39929.23202354,0.000249,2]
[394997157,1764283849600,-4956.81,0.00024931,4]
[394997158,1764283849610,-2551.07,0.00024931,4]
[394997159,1764283849620,-1259.6,0.00024931,4]
[394997160,1764283849629,-997.34,0.00024931,4]
[394997161,1764283849639,-2817.43,0.00024931,4]
[394997162,1764283849648,-538.23,0.00024931,4]
[394997163,1764283849657,-1445.14,0.00024931,4]
[394997164,1764283849666,-811.91,0.00024931,4]
[394997165,1764283849676,-2160.21,0.00024931,4]
[394997166,1764283849685,-3898.53,0.00024931,4]
[394997167,1764283849694,-3533.28,0.00024931,4]
[394997168,1764283849703,-914.49,0.00024931,4]
[394997169,1764283849712,-3896.64,0.00024931,4]
[394997170,1764283849721,-1064.64,0.00024931,4]
[394997171,1764283849730,-599.11,0.00024931,4]
[394997172,1764283849739,-987.34,0.00024931,4]
[394997173,1764283849748,-2823.29,0.00024931,4]
[394997174,1764283849757,-1818.71,0.00024931,4]
[394997175,1764283849767,-1125.97,0.00024931,4]
[394997176,1764283849776,-5948.99,0.00024931,4]
[394997177,1764283849785,-574.75581632,0.00024932,2]
[394997178,1764283849794,-1038.772237,0.0002498,5]
[394997179,1764283849803,-1000.0,0.00025,5]
[394997180,1764283849812,-4956.81,0.00025205,4]
[394997181,1764283849821,-2551.07,0.00025205,4]
[394997182,1764283849830,-572.2072291,0.00025205,4]
[394997183,1764283850270,-50000.0,9.698e-05,2]
[394997184,1764283850280,-508.51,0.00019178,2]
[394997185,1764283850291,-952.08,0.00019178,2]
[394997186,1764283850299,-500.0,0.00019452,2]
[394997187,1764283850309,-1515.95,0.00019452,2]
[394997188,1764283850319,-508.51,0.00019452,2]
[394997189,1764283850328,-952.08,0.00019452,2]
[394997190,1764283850337,-500.0,0.00019726,2]
[394997191,1764283850347,-1515.95,0.00019726,2]
[394997192,1764283850356,-508.51,0.00019726,2]
[394997193,1764283850366,-952.08,0.00019726,2]
[394997194,1764283850376,-1730.24,0.0002,2]
[394997195,1764283850386,-500.0,0.0002,2]
[394997196,1764283850395,-1515.95,0.0002,2]
[394997197,1764283850405,-508.51,0.0002,2]
[394997198,1764283850414,-952.08,0.0002,2]
[394997199,1764283850423,-1730.24,0.00020273,2]
[394997200,1764283850433,-500.0,0.00020273,2]
[394997201,1764283850442,-1515.95,0.00020273,2]
[394997202,1764283850452,-508.51,0.00020273,2]
[394997203,1764283850461,-952.08,0.00020273,2]
[394997204,1764283850471,-1730.24,0.00020547,2]
[394997205,1764283850480,-500.0,0.00020547,2]
[394997206,1764283850490,-1515.95,0.00020547,2]
[394997207,1764283850499,-952.08,0.00020547,2]
[394997208,1764283850509,-508.51,0.00020547,2]
[394997209,1764283850518,-1730.24,0.00020821,2]
[394997210,1764283850527,-1515.95,0.00020821,2]
[394997211,1764283850536,-488.93295363,0.00020821,2]
[394997212,1764283850546,-952.08,0.00020821,2]
[394997213,1764283850556,-508.51,0.00020821,2]
[394997214,1764283850568,-1730.24,0.00021095,2]
[394997215,1764283850577,-1515.95,0.00021095,2]
[394997216,1764283850586,-952.08,0.00021095,2]
[394997217,1764283850596,-1730.24,0.00021369,2]
[394997218,1764283850606,-1515.95,0.00021369,2]
[394997219,1764283850616,-952.08,0.00021369,2]
[394997220,1764283850626,-1730.24,0.00021643,2]
[394997221,1764283850637,-1515.95,0.00021643,2]
[394997222,1764283850647,-1730.24,0.00021917,2]
[394997223,1764283850656,-1730.24,0.00022191,2]
[394997224,1764283850666,-3571.91,0.00022465,2]
[394997225,1764283850675,-3571.91,0.00022739,2]
[394997226,1764283850684,-3571.91,0.00023013,2]
[394997227,1764283850693,-500.0,0.00023287,2]
[394997228,1764283850703,-3571.91,0.00023287,2]
[394997229,1764283850713,-500.0,0.00023561,2]
[394997230,1764283850722,-3571.91,0.00023561,2]
[394997231,1764283850731,-500.0,0.00023835,2]
[394997232,1764283850740,-3571.91,0.00023835,2]
[394997233,1764283850750,-343.01546597,0.00024109,2]
[394997234,1764283850760,-3571.91,0.00024109,2]
[394997235,1764283850769,-3571.91,0.00024383,2]
[394997236,1764283850778,-3571.91,0.00024657,2]
[394997237,1764283850788,-687.3927709,0.00025205,4]
[394997238,1764283850797,-997.34,0.00025205,4]
[394997239,1764283850806,-2817.43,0.00025205,4]
[394997240,1764283850816,-538.23,0.00025205,4]
[394997241,1764283850825,-1445.14,0.00025205,4]
[394997242,1764283850834,-811.91,0.00025205,4]
[394997243,1764283850844,-2160.21,0.00025205,4]
[394997244,1764283850853,-3898.53,0.00025205,4]
[394997245,1764283850862,-3533.28,0.00025205,4]
[394997246,1764283850871,-914.49,0.00025205,4]
[394997247,1764283850881,-3896.64,0.00025205,4]
[394997248,1764283850890,-1064.64,0.00025205,4]
[394997249,1764283850899,-599.11,0.00025205,4]
[394997250,1764283850908,-987.34,0.00025205,4]
[394997251,1764283850918,-2823.29,0.00025205,4]
[394997252,1764283850927,-1818.71,0.00025205,4]
[394997253,1764283850936,-1125.97,0.00025205,4]
[394997254,1764283851056,-5948.99,0.00025205,4]
[394997255,1764283851076,-301.6071529,0.00025437,2]
[394997256,1764283851086,-308.7236143,0.00025437,2]
[394997257,1764283851096,-301.607153,0.00025437,2]
[394997258,1764283851106,-301.6071529,0.00025437,2]
[394997259,1764283851115,-301.6071529,0.00025437,2]
[394997260,1764283851124,-301.6071529,0.00025437,2]
[394997261,1764283851134,-610.315305,0.00025437,2]
[394997262,1764283851143,-301.6071529,0.00025437,2]
[394997263,1764283851152,-301.6071529,0.00025437,2]
[394997264,1764283851162,-301.6071529,0.00025437,2]
[394997265,1764283851172,-301.6071529,0.00025437,2]
[394997266,1764283851182,-4956.94654829,0.00025479,4]
[394997267,1764283851191,-2551.12684951,0.00025479,4]
[394997268,1764283851201,-1259.72,0.00025479,4]
[394997269,1764283851210,-997.43348379,0.00025479,4]
[394997270,1764283851219,-2817.63544201,0.00025479,4]
[394997271,1764283851228,-538.45176017,0.00025479,4]
[394997272,1764283851238,-1445.32829674,0.00025479,4]
[394997273,1764283851248,-811.93601784,0.00025479,4]
[394997274,1764283851257,-2160.36592961,0.00025479,4]
[394997275,1764283851267,-3898.73869254,0.00025479,4]
[394997276,1764283851276,-3533.47167843,0.00025479,4]
[394997277,1764283851285,-914.698204,0.00025479,4]
[394997278,1764283851294,-3896.81681414,0.00025479,4]
[394997279,1764283851304,-1064.81243262,0.00025479,4]
[394997280,1764283851313,-599.29016588,0.00025479,4]
[394997281,1764283851323,-987.57811767,0.00025479,4]
[394997282,1764283851332,-2823.52410897,0.00025479,4]
[394997283,1764283851342,-1818.74149011,0.00025479,4]
[394997284,1764283851351,-1126.08649107,0.00025479,4]
[394997285,1764283851361,-5949.13852368,0.00025479,4]
[394997286,1764283851370,-393.0,0.00025515,2]
[394997287,1764283851379,-153.0,0.00025527,2]
[394997288,1764283851388,-153.0,0.00025527,2]
[394997289,1764283851397,-153.0,0.00025527,2]
[394997290,1764283851407,-153.0,0.00025527,2]
[394997291,1764283851416,-153.0,0.00025527,2]
[394997292,1764283851425,-153.0,0.00025527,2]
[394997293,1764283851434,-153.0,0.00025527,2]
[394997294,1764283851443,-500.0,0.00025617,7]
[394997295,1764283851452,-1000.0,0.00025922,10]
[394997296,1764283851462,-1000.0,0.00025922,10]
[394997297,1764283851471,-1000.0,0.00025922,10]
[394997298,1764283851480,-715.0,0.00025922,10]
[394997299,1764283851489,-301.6071529,0.00025931,2]
[394997300,1764283851498,-301.6071529,0.00025931,2]
[394997301,1764283851508,-301.6071529,0.00025931,2]
[394997302,1764283851517,-301.6071529,0.00025931,2]
[394997303,1764283851526,-301.6071529,0.00025931,2]
[394997304,1764283851535,-320.35,0.00026,7]
[394997305,1764283851544,-1647.84766602,0.00026,30]
[394997306,1764283851553,-160.0,0.00026,30]
[394997307,1764283851565,-160.0,0.00026,10]
[394997308,1764283851575,-353.54508592,0.00026,10]
[394997309,1764283851584,-353.54508592,0.00026,30]
[394997310,1764283851595,-272.0,0.00026027,14]
[394997311,1764283851607,-153.0,0.00026075,2]
[394997312,1764283851618,-153.0,0.00026075,2]
[394997313,1764283851628,-153.0,0.00026075,2]
[394997314,1764283851637,-359.9345066,0.00026075,2]
[394997315,1764283851646,-259.3384147,0.00026093,2]
[394997316,1764283851655,-380.01,0.000261,14]
[394997317,1764283851666,-151.0,0.00026118,2]
[394997318,1764283851676,-301.6071529,0.00026259,2]
[394997319,1764283851685,-301.6071529,0.00026259,2]
[394997320,1764283851694,-301.6071529,0.00026259,2]
[394997321,1764283851704,-603.2143058,0.00026259,2]
[394997322,1764283851714,-301.6071529,0.00026259,2]
[394997323,1764283851730,-301.6071529,0.00026259,2]
[394997324,1764283851740,-301.6071529,0.00026259,2]
[394997325,1764283851749,-301.6071529,0.00026259,2]
[394997326,1764283851759,-301.6071529,0.00026259,2]
[394997327,1764283851769,-301.6071529,0.00026259,2]
[394997328,1764283851779,-301.6071529,0.00026259,2]
[394997329,1764283851788,-460.68136759,0.0002649,3]
[394997330,1764283851798,-414.0,0.0002651,2]
[394997331,1764283851808,-922.575467,0.00026676,2]
[394997332,1764283851819,-10000.0,0.00026981,2]
[394997333,1764283851828,-256.75655889,0.00027006,5]
[394997334,1764283851838,-301.6071529,0.00027081,2]
[394997335,1764283851847,-301.6071529,0.00027081,2]
[394997336,1764283851857,-301.6071529,0.00027081,2]
[394997337,1764283851867,-301.6071529,0.00027081,2]
[394997338,1764283851877,-301.6071529,0.00027081,2]
[394997339,1764283851886,-301.6071529,0.00027081,2]